fUSD/lending_fUSD_20260405
["ID","MTS","AMOUNT","RATE_DAILY","PERIOD"]
[419801114,1775387447614,-806.66,0.00013707,2]
[419801115,1775387447624,-806.66,0.00013707,2]
[419801116,1775387447634,-806.66,0.00013707,2]
[419801117,1775387447645,-806.66,0.00013707,2]
[419801118,1775387447655,-806.66,0.00013707,2]
[419801119,1775387447664,-806.66,0.00013707,2]
[419801120,1775387447675,-806.66,0.00013707,2]
[419801121,1775387447684,-806.66,0.00013707,2]
[419801122,1775387447694,-806.66,0.00013707,2]
[419801123,1775387447704,-806.66,0.00013707,2]
[419801124,1775387447714,-806.66,0.00013707,2]
[419801125,1775387447724,-806.66,0.00013707,2]
[419801126,1775387447734,-806.66,0.00013707,2]
[419801127,1775387447744,-806.66,0.00013707,2]
[419801128,1775387447754,-1268.28,0.00013707,2]
[419801129,1775387447765,-1268.28,0.00013707,2]
[419801130,1775387447776,-1268.28,0.00013707,2]
[419801131,1775387447787,-1268.28,0.00013707,2]
[419801132,1775387447797,-1268.28,0.00013707,2]
[419801133,1775387447807,-1268.28,0.00013707,2]
[419801134,1775387447818,-1268.28,0.00013707,2]
[419801135,1775387447829,-1268.28,0.00013707,2]
[419801136,1775387447839,-1268.28,0.00013707,2]
[419801137,1775387447849,-1268.28,0.00013707,2]
[419801138,1775387447859,-1268.28,0.00013707,2]
[419801139,1775387447868,-1268.28,0.00013707,2]
[419801140,1775387447878,-1268.28,0.00013707,2]
[419801141,1775387447888,-1268.28,0.00013707,2]
[419801142,1775387447898,-1268.28,0.00013707,2]
[419801143,1775387447908,-1268.28,0.00013707,2]
[419801144,1775387447918,-1268.28,0.00013707,2]
[419801145,1775387447928,-673.65,0.00013707,2]
[419801146,1775387447938,-673.65,0.00013707,2]
[419801147,1775387447949,-673.65,0.00013707,2]
[419801148,1775387447958,-673.65,0.00013707,2]
[419801149,1775387447968,-673.65,0.00013707,2]
[419801150,1775387447977,-673.65,0.00013707,2]
[419801151,1775387447987,-673.65,0.00013707,2]
[419801152,1775387447996,-673.65,0.00013707,2]
[419801153,1775387448006,-673.65,0.00013707,2]
[419801154,1775387448015,-673.65,0.00013707,2]
[419801155,1775387448025,-673.65,0.00013707,2]
[419801156,1775387448035,-673.65,0.00013707,2]
[419801157,1775387448044,-673.65,0.00013707,2]
[419801158,1775387448054,-673.65,0.00013707,2]
[419801159,1775387448064,-673.65,0.00013707,2]
[419801160,1775387448074,-673.65,0.00013707,2]
[419801161,1775387448083,-1600.0,0.0001379,2]
[419801163,1775387448092,-500.0,0.00013807,2]
[419801164,1775387448103,-150.0,0.00013973,2]
[419801165,1775387448113,-150.0,0.00013973,2]
[419801166,1775387448124,-150.0,0.00013973,2]
[419801167,1775387448134,-150.0,0.00013973,2]
[419801168,1775387448143,-500.0,0.00013981,2]
[419801169,1775387448152,-719.95,0.00013981,2]
[419801170,1775387448163,-500.0,0.00013981,2]
[419801171,1775387448173,-806.66,0.00013981,2]
[419801172,1775387448184,-1268.28,0.00013981,2]
[419801173,1775387448195,-59316.05286942,0.00013998,2]
[419801174,1775387448204,-1500.0,0.00014,2]
[419801175,1775387448214,-339.83981092,0.00014027,2]
[419801176,1775387448224,-1592.87721993,0.00014027,2]
[419801177,1775387448235,-194.72792766,0.00014027,2]
[419801178,1775387448245,-200.0,0.00014027,2]
[419801179,1775387448255,-829.12830338,0.00014027,2]
[419801180,1775387448265,-369.5568607,0.00014027,2]
[419801182,1775387448276,-600.0,0.0001411,2]
[419801183,1775387448286,-11422.25541393,0.00014115,2]
[419801184,1775387448296,-169.65,0.0001412,2]
[419801185,1775387448307,-736.0,0.00014192,2]
[419801186,1775387448316,-150.0,0.00014247,2]
[419801187,1775387448325,-150.0,0.00014247,2]
[419801188,1775387448335,-1000.0,0.00014247,2]
[419801189,1775387448344,-627.70930647,0.00014247,2]
[419801190,1775387448355,-308.03873246,0.00014247,2]
[419801191,1775387448365,-861.43877969,0.00014247,2]
[419801192,1775387448376,-1000.0,0.00014247,2]
[419801193,1775387448386,-1000.0,0.00014247,2]
[419801194,1775387448395,-1000.0,0.00014247,2]
[419801195,1775387448405,-1000.0,0.00014247,2]
[419801196,1775387448414,-730.09729929,0.00014247,2]
[419801197,1775387448424,-1000.0,0.00014247,2]
[419801198,1775387448443,-1000.0,0.00014247,2]
[419801199,1775387448455,-500.0,0.00014247,2]
[419801200,1775387448466,-1000.0,0.00014247,2]
[419801201,1775387448476,-1000.0,0.00014247,2]
[419801202,1775387448486,-1000.0,0.00014247,2]
[419801203,1775387448496,-1000.0,0.00014247,2]
[419801204,1775387448506,-1000.0,0.00014247,2]
[419801205,1775387448516,-180.00096908,0.00014247,2]
[419801206,1775387448526,-1000.0,0.00014247,2]
[419801207,1775387448536,-1000.0,0.00014247,2]
[419801208,1775387448547,-1000.0,0.00014247,2]
[419801209,1775387448556,-1000.0,0.00014247,2]
[419801210,1775387448566,-1000.0,0.00014247,2]
[419801211,1775387448576,-1000.0,0.00014247,2]
[419801212,1775387448585,-1000.0,0.00014247,2]
[419801213,1775387448595,-169.74230425,0.00014247,2]
[419801214,1775387448604,-1000.0,0.00014247,2]
[419801215,1775387448614,-1000.0,0.00014247,2]
[419801216,1775387448624,-1000.0,0.00014247,2]
[419801217,1775387448634,-686.27125357,0.00014247,2]
[419801218,1775387448643,-1000.0,0.00014247,2]
[419801219,1775387448653,-790.32775663,0.00014247,2]
[419801220,1775387448663,-1000.0,0.00014247,2]
[419801221,1775387448672,-1000.0,0.00014247,2]
[419801222,1775387448683,-1000.0,0.00014247,2]
[419801223,1775387448693,-1000.0,0.00014247,2]
[419801224,1775387448703,-1000.0,0.00014247,2]
[419801225,1775387448713,-1000.0,0.00014247,2]
[419801226,1775387448723,-189.74788311,0.00014247,2]
[419801227,1775387448733,-1000.0,0.00014247,2]
[419801228,1775387448743,-1000.0,0.00014247,2]
[419801229,1775387448753,-1000.0,0.00014247,2]
[419801230,1775387448763,-500.0,0.00014247,2]
[419801231,1775387448773,-500.99241895,0.00014247,2]
[419801232,1775387448783,-1000.0,0.00014247,2]
[419801233,1775387448792,-1000.0,0.00014247,2]
[419801234,1775387448802,-743.80429884,0.00014247,2]
[419801235,1775387448813,-1000.0,0.00014247,2]
[419801236,1775387448823,-160.0,0.00014256,2]
[419801237,1775387448833,-823.0,0.00014286,2]
[419801238,1775387448843,-645.0,0.00014308,2]
[419801239,1775387448854,-367.34,0.00014309,2]
[419801240,1775387448864,-3292.0,0.00014319,2]
[419801241,1775387448874,-924.84,0.0001437,2]
[419801242,1775387448884,-859.57,0.0001437,2]
[419801243,1775387448894,-1122.33,0.0001437,2]
[419801244,1775387448904,-673.65,0.0001437,2]
[419801245,1775387448914,-168.41913708,0.00014372,2]
[419801246,1775387448924,-1191.47,0.00014384,2]
[419801247,1775387448934,-10405.80591116,0.0001439,2]
[419801248,1775387448945,-2811.0,0.000144,2]
[419801249,1775387448956,-508.0,0.00014449,3]
[419801250,1775387448966,-2000.0,0.00014518,2]
[419801251,1775387448975,-2000.0,0.00014518,2]
[419801252,1775387448985,-2000.0,0.00014518,2]
[419801253,1775387448994,-2000.0,0.00014518,2]
[419801254,1775387449004,-2000.0,0.00014518,2]
[419801255,1775387449013,-2000.0,0.00014518,2]
[419801256,1775387449023,-2000.0,0.00014518,2]
[419801257,1775387449032,-2000.0,0.00014518,2]
[419801258,1775387449043,-2000.0,0.00014518,2]
[419801259,1775387449052,-2000.0,0.00014518,2]
[419801260,1775387449062,-2000.0,0.00014518,2]
[419801261,1775387449071,-2000.0,0.00014518,2]
[419801262,1775387449080,-2000.0,0.00014518,2]
[419801263,1775387449090,-2000.0,0.00014518,2]
[419801264,1775387449100,-2000.0,0.00014518,2]
[419801265,1775387449109,-2000.0,0.00014518,2]
[419801266,1775387449121,-2000.0,0.00014518,2]
[419801267,1775387449130,-2000.0,0.00014518,2]
[419801268,1775387449139,-2000.0,0.00014518,2]
[419801269,1775387449150,-2000.0,0.00014518,2]
[419801270,1775387449159,-59316.05286942,0.00014528,2]
[419801271,1775387449169,-1651.81367706,0.00014575,2]
[419801272,1775387449178,-201.93286099,0.00014575,2]
[419801273,1775387449188,-200.0,0.00014575,2]
[419801274,1775387449197,-158.96,0.00014585,2]
[419801275,1775387449207,-375.94726026,0.00014674,2]
[419801276,1775387449216,-162.0,0.0001472,2]
[419801277,1775387449226,-1227.692277,0.00014795,2]
[419801278,1775387449236,-953.31303788,0.00014795,2]
[419801279,1775387449245,-1515.96545288,0.00014795,2]
[419801280,1775387449255,-1500.0,0.00014795,2]
[419801281,1775387449264,-1500.0,0.00014795,2]
[419801282,1775387449274,-1500.0,0.00014795,2]
[419801283,1775387449284,-1500.0,0.00014795,2]
[419801284,1775387449294,-1500.0,0.00014795,2]
[419801285,1775387449304,-1500.0,0.00014795,2]
[419801286,1775387449314,-1500.0,0.00014795,2]
[419801287,1775387449323,-1500.0,0.00014795,2]
[419801288,1775387449332,-1500.0,0.00014795,2]
[419801289,1775387449342,-1175.09161132,0.00014795,2]
[419801290,1775387449352,-1002.83538283,0.00014795,2]
[419801291,1775387449362,-1500.0,0.00014795,2]
[419801292,1775387449371,-1500.0,0.00014795,2]
[419801293,1775387449380,-1500.0,0.00014795,2]
[419801294,1775387449390,-1500.0,0.00014795,2]
[419801295,1775387449400,-1500.0,0.00014795,2]
[419801296,1775387449409,-1500.0,0.00014795,2]
[419801297,1775387449419,-1500.0,0.00014795,2]
[419801298,1775387449429,-1500.0,0.00014795,2]
[419801299,1775387449438,-1500.0,0.00014795,2]
[419801300,1775387449448,-1500.0,0.00014795,2]
[419801301,1775387449458,-1500.0,0.00014795,2]
[419801302,1775387449469,-1500.0,0.00014795,2]
[419801303,1775387449478,-1500.0,0.00014795,2]
[419801304,1775387449488,-1500.0,0.00014795,2]
[419801305,1775387449497,-1500.0,0.00014795,2]
[419801306,1775387449506,-1500.0,0.00014795,2]
[419801307,1775387449516,-1500.0,0.00014795,2]
[419801308,1775387449525,-1500.0,0.00014795,2]
[419801309,1775387449534,-418.3764967,0.00014795,2]
[419801310,1775387449544,-1500.0,0.00014795,2]
[419801311,1775387449554,-1500.0,0.00014795,2]
[419801312,1775387449564,-184.0,0.00014795,2]
[419801313,1775387449573,-169.65,0.00014817,2]
[419801314,1775387449582,-152.69,0.00014869,2]
[419801315,1775387449592,-219.3772,0.000149,2]
[419801316,1775387449602,-289.56339563,0.00014908,2]
[419801317,1775387449612,-2067.27601646,0.00015,2]
[419801318,1775387449623,-300.0,0.00015,2]
[419801319,1775387449634,-8047.93487487,0.00015,2]
[419801320,1775387449644,-1418.0,0.00015002,5]
[419801321,1775387449656,-2000.0,0.00015015,2]
[419801322,1775387449667,-500.0,0.00015015,2]
[419801323,1775387449677,-1600.0,0.00015044,2]
[419801324,1775387449687,-59316.05286942,0.00015059,2]
[419801325,1775387449699,-1191.47,0.00015068,2]
[419801326,1775387449709,-800.0,0.00015068,2]
[419801327,1775387449720,-747.8093786,0.00015122,2]
[419801328,1775387449731,-599.60298507,0.00015122,2]
[419801329,1775387449744,-1712.93078312,0.00015123,2]
[419801330,1775387449755,-200.0,0.00015123,2]
[419801331,1775387449765,-209.40437684,0.00015123,2]
[419801332,1775387449776,-1229.18,0.00015166,2]
[419801333,1775387449786,-1047.087,0.00015166,2]
[419801334,1775387449796,-600.0,0.00015225,2]
[419801335,1775387449808,-155.80569417,0.00015265,2]
[419801336,1775387449818,-2471.0,0.00015293,2]
[419801337,1775387449828,-3770.0,0.00015293,2]
[419801338,1775387449838,-1517.64,0.000153,2]
[419801339,1775387449848,-185.26,0.00015301,6]
[419801340,1775387449858,-185.26,0.00015301,21]
[419801341,1775387449867,-1000.46413845,0.00015301,2]
[419801342,1775387449876,-281.73,0.00015304,2]
[419801343,1775387449886,-2000.0,0.00015342,2]
[419801344,1775387449896,-2000.0,0.00015342,2]
[419801345,1775387449907,-2000.0,0.00015342,2]
[419801346,1775387449917,-1762.51968471,0.00015342,2]
[419801347,1775387449927,-1000.0,0.00015342,2]
[419801348,1775387449936,-1189.37318328,0.00015342,2]
[419801349,1775387449946,-2000.0,0.00015342,2]
[419801350,1775387449956,-671.96403511,0.00015342,2]
[419801351,1775387449966,-500.0,0.00015342,2]
[419801352,1775387449976,-500.0,0.00015342,2]
[419801353,1775387449986,-693.24301277,0.00015342,2]
[419801354,1775387449996,-2000.0,0.00015342,2]
[419801355,1775387450006,-2000.0,0.00015342,2]
[419801356,1775387450016,-500.0,0.00015342,2]
[419801357,1775387450026,-740.76074935,0.00015342,2]
[419801358,1775387450035,-932.23819105,0.00015342,2]
[419801359,1775387450045,-2000.0,0.00015342,2]
[419801360,1775387450055,-1753.85680119,0.00015342,2]
[419801361,1775387450065,-2000.0,0.00015342,2]
[419801362,1775387450075,-2000.0,0.00015342,2]
[419801363,1775387450084,-2000.0,0.00015342,2]
[419801364,1775387450094,-2000.0,0.00015342,2]
[419801365,1775387450104,-2000.0,0.00015342,2]
[419801366,1775387450114,-2000.0,0.00015342,2]
[419801367,1775387450124,-1058.37452133,0.00015342,2]
[419801368,1775387450134,-1000.0,0.00015342,2]
[419801369,1775387450144,-1143.48326881,0.00015342,2]
[419801370,1775387450154,-2000.0,0.00015342,2]
[419801371,1775387450164,-347.07116371,0.00015342,2]
[419801372,1775387450174,-512.60947705,0.000154,2]
[419801373,1775387450183,-2000.0,0.00015401,2]
[419801374,1775387450193,-1000.0,0.00015402,2]
[419801375,1775387450202,-1000.0,0.00015402,2]
[419801376,1775387450212,-1000.0,0.00015402,2]
[419801377,1775387450221,-1000.0,0.00015402,2]
[419801378,1775387450231,-1000.0,0.00015402,2]
[419801379,1775387450241,-2316.92,0.00015471,2]
[419801380,1775387450251,-1314.37,0.00015471,2]
[419801381,1775387450261,-1011.23740187,0.00015491,2]
[419801382,1775387450271,-1028.47187656,0.00015491,2]
[419801383,1775387450280,-1026.9789002,0.00015491,2]
[419801384,1775387450290,-1067.00980391,0.00015491,2]
[419801385,1775387450299,-1005.56166849,0.00015491,2]
[419801386,1775387450309,-1082.56657661,0.00015491,2]
[419801387,1775387450320,-1125.58160955,0.00015491,2]
[419801388,1775387450330,-1143.41715833,0.00015491,2]
[419801389,1775387450341,-1661.34286454,0.000155,3]
[419801390,1775387450351,-5643.7200837,0.000155,3]
[419801391,1775387450361,-1231.52674065,0.000155,2]
[419801392,1775387450372,-2000.0,0.00015501,2]
[419801393,1775387450383,-169.65,0.00015513,2]
[419801394,1775387450393,-1252.0,0.0001555,2]
[419801395,1775387450404,-367.34,0.00015558,2]
[419801396,1775387450416,-1894.0,0.00015583,2]
[419801397,1775387450426,-1000.0,0.00015585,2]
[419801398,1775387450436,-59316.05286942,0.00015589,2]
[419801399,1775387450446,-2000.0,0.00015601,2]
[419801400,1775387450456,-733.77686062,0.00015634,2]
[419801401,1775387450466,-1894.0,0.00015646,2]
[419801402,1775387450476,-500.0,0.0001566,2]
[419801403,1775387450486,-719.95,0.0001566,2]
[419801404,1775387450495,-383.1910465,0.0001566,2]
[419801405,1775387450506,-806.66,0.0001566,2]
[419801406,1775387450516,-1268.28,0.0001566,2]
[419801407,1775387450525,-1776.30922209,0.00015671,2]
[419801408,1775387450535,-205.79985871,0.00015671,2]
[419801409,1775387450544,-217.15233878,0.00015671,2]
[419801410,1775387450554,-162.0,0.0001568,2]
[419801411,1775387450564,-924.84,0.00015689,2]
[419801412,1775387450574,-859.57,0.00015689,2]
[419801413,1775387450584,-1122.33,0.00015689,2]
[419801414,1775387450594,-673.65,0.00015689,2]
[419801415,1775387450604,-2000.0,0.00015701,2]
[419801416,1775387450614,-1152.0,0.00015702,2]
[419801417,1775387450624,-158.96,0.00015746,2]
[419801418,1775387450635,-4609.0,0.00015751,2]
[419801419,1775387450645,-331.0,0.00015753,2]
[419801420,1775387450655,-1191.47,0.00015753,2]
[419801421,1775387450666,-151.39,0.00015779,2]
[419801422,1775387450932,-151.39,0.00015779,2]
[419801423,1775387450944,-151.39,0.00015779,2]
[419801424,1775387450954,-151.39,0.00015779,2]
[419801425,1775387450963,-508.0,0.00015787,4]
[419801426,1775387450973,-825.6465314,0.000158,2]
[419801427,1775387450983,-2000.0,0.00015801,2]
[419801428,1775387450993,-1894.0,0.00015826,2]
[419801429,1775387451003,-1000.0,0.00015835,2]
[419801430,1775387451013,-1000.0,0.00015835,2]
[419801431,1775387451024,-1000.0,0.00015835,2]
[419801432,1775387451034,-1000.0,0.00015835,2]
[419801433,1775387451045,-1000.0,0.00015835,2]
[419801434,1775387451054,-1000.0,0.00015835,2]
[419801435,1775387451064,-1000.0,0.00015835,2]
[419801436,1775387451074,-1000.0,0.00015835,2]
[419801437,1775387451084,-266.452,0.00015835,2]
[419801438,1775387451094,-924.84,0.00015839,2]
[419801439,1775387451105,-924.84,0.00015839,2]
[419801440,1775387451115,-924.84,0.00015839,2]
[419801441,1775387451125,-924.84,0.00015839,2]
[419801442,1775387451135,-924.94,0.00015839,2]
[419801443,1775387451145,-500.0,0.00015839,2]
[419801444,1775387451155,-500.0,0.00015839,2]
[419801445,1775387451166,-597.52469685,0.00015839,2]
[419801446,1775387451177,-719.95,0.00015839,2]
[419801447,1775387451186,-719.95,0.00015839,2]
[419801448,1775387451196,-719.95,0.00015839,2]
[419801449,1775387451207,-719.95,0.00015839,2]
[419801450,1775387451216,-720.00513851,0.00015839,2]
[419801451,1775387451226,-859.57,0.00015839,2]
[419801452,1775387451236,-859.57,0.00015839,2]
[419801453,1775387451246,-859.57,0.00015839,2]
[419801454,1775387451255,-859.57,0.00015839,2]
[419801455,1775387451265,-859.61799859,0.00015839,2]
[419801456,1775387451274,-1122.33,0.00015839,2]
[419801457,1775387451285,-1122.33,0.00015839,2]
[419801458,1775387451296,-1122.33,0.00015839,2]
[419801459,1775387451306,-1122.33,0.00015839,2]
[419801460,1775387451316,-1122.48918003,0.00015839,2]
[419801461,1775387451328,-806.66,0.00015839,2]
[419801462,1775387451339,-806.66,0.00015839,2]
[419801463,1775387451348,-806.66,0.00015839,2]
[419801464,1775387451358,-806.66,0.00015839,2]
[419801465,1775387451367,-806.84950636,0.00015839,2]
[419801466,1775387451377,-1268.28,0.00015839,2]
[419801467,1775387451388,-1268.28,0.00015839,2]
[419801468,1775387451398,-1268.28,0.00015839,2]
[419801469,1775387451410,-1268.28,0.00015839,2]
[419801470,1775387451421,-1268.28484396,0.00015839,2]
[419801471,1775387451431,-673.65,0.00015839,2]
[419801472,1775387451442,-673.65,0.00015839,2]
[419801473,1775387451454,-673.65,0.00015839,2]
[419801474,1775387451463,-673.65,0.00015839,2]
[419801475,1775387451473,-673.70745143,0.00015839,2]
[419801476,1775387451483,-166143.042,0.0001584,2]
[419801477,1775387451493,-1894.0,0.00015842,2]
[419801478,1775387451503,-375.0,0.00015855,2]
[419801479,1775387451514,-217.0,0.00015865,2]
[419801480,1775387451524,-273.0,0.00015865,2]
[419801481,1775387451534,-200.0,0.00015865,2]
[419801482,1775387451543,-250.0,0.00015865,2]
[419801483,1775387451553,-224.902,0.00015865,2]
[419801484,1775387451563,-238.347,0.00015865,2]
[419801485,1775387451572,-250.0,0.00015865,2]
[419801486,1775387451582,-162.919,0.00015865,2]
[419801487,1775387451592,-250.0,0.00015865,2]
[419801488,1775387451601,-1348.652,0.00015865,2]
[419801489,1775387451611,-1052.848,0.00015865,2]
[419801490,1775387451621,-3633.957,0.00015865,2]
[419801491,1775387451630,-1267.843,0.00015865,2]
[419801492,1775387451640,-500.0,0.00015872,2]
[419801493,1775387451650,-500.0,0.0001589,2]
[419801494,1775387451659,-500.0,0.0001589,2]
[419801495,1775387451668,-500.0,0.0001589,2]
[419801496,1775387451679,-500.0,0.0001589,2]
[419801497,1775387451689,-500.0,0.0001589,2]
[419801498,1775387451699,-500.0,0.0001589,2]
[419801499,1775387451709,-500.0,0.0001589,2]
[419801500,1775387451718,-500.0,0.0001589,2]
[419801501,1775387451728,-500.0,0.0001589,2]
[419801502,1775387451741,-500.0,0.0001589,2]
[419801503,1775387451750,-500.0,0.0001589,2]
[419801504,1775387451760,-500.0,0.0001589,2]
[419801505,1775387451770,-500.0,0.0001589,2]
[419801506,1775387451779,-500.0,0.0001589,2]
[419801507,1775387451789,-500.0,0.0001589,2]
[419801508,1775387451799,-648.46954732,0.0001589,2]
[419801509,1775387451809,-2000.0,0.0001589,2]
[419801510,1775387451819,-2000.0,0.0001589,2]
[419801511,1775387451829,-1947.77606198,0.0001589,2]
[419801512,1775387451839,-950.63286364,0.0001589,2]
[419801513,1775387451848,-2500.0,0.0001589,2]
[419801514,1775387451858,-2500.0,0.0001589,2]
[419801515,1775387451868,-2006.22994168,0.0001589,2]
[419801516,1775387451878,-2500.0,0.0001589,2]
[419801517,1775387451887,-2006.37622858,0.0001589,2]
[419801518,1775387451897,-701.4485258,0.0001589,2]
[419801519,1775387451907,-270.29905968,0.0001589,2]
[419801520,1775387451917,-323.00574972,0.0001589,2]
[419801521,1775387451927,-1100.33490613,0.0001589,2]
[419801522,1775387451937,-1894.0,0.00015893,2]
[419801523,1775387451946,-24594.73927756,0.000159,2]
[419801524,1775387451956,-1096260.15180305,0.000159,5]
[419801525,1775387453436,-463.17396815,0.00012913,2]
[419801526,1775387453465,-8517.57207079,0.00012913,2]
[419801527,1775387453475,-2076.0,0.00013429,2]
[419801528,1775387453486,-2076.0,0.00013429,2]
[419801529,1775387453495,-1791816.97884334,0.000159,5]
[419801530,1775387453509,-624.62590022,0.000159,2]
[419801531,1775387453519,-1980.1042097,0.000159,2]
[419801532,1775387453529,-672.962147,0.000159,2]
[419801533,1775387453539,-672.962147,0.000159,2]
[419801534,1775387453548,-672.962147,0.000159,2]
[419801535,1775387453558,-151.0,0.000159,2]
[419801536,1775387453568,-672.962147,0.000159,2]
[419801537,1775387453578,-151.0,0.000159,2]
[419801538,1775387453587,-151.0,0.000159,2]
[419801539,1775387453596,-151.0,0.000159,2]
[419801540,1775387453605,-2000.0,0.00015901,2]
[419801541,1775387453615,-1894.0,0.00015913,2]
[419801542,1775387453624,-1894.0,0.00015914,2]
[419801543,1775387453634,-375.0,0.00015926,2]
[419801544,1775387453643,-210.0,0.00015953,2]
[419801545,1775387453652,-626.0,0.00015988,2]
[419801546,1775387453661,-500.0,0.00015989,2]
[419801547,1775387453671,-666.0,0.00015999,2]
[419801548,1775387453680,-666.0,0.00015999,2]
[419801549,1775387453690,-5592524.13002515,0.00016,2]
[419801550,1775387454585,-605.64470144,0.00010758,2]
[419801551,1775387454596,-500.0,0.00010758,2]
[419801552,1775387454605,-500.0,0.00010758,2]
[419801553,1775387454617,-602.79494521,0.00010758,2]
[419801554,1775387454627,-122.56748696,0.00013429,2]
[419801555,1775387454970,-170.80439679,0.00010695,2]
[419801556,1775387454980,-1953.43251304,0.00013429,2]
[419801557,1775387454990,-783.58342608,0.00013429,2]
[419801574,1775387797064,-479.18200034,9.331e-05,2]
[419801584,1775388429145,-238.77736673,9.646e-05,2]
[419801593,1775388633362,-1200.0,9.549e-05,2]
[419801594,1775388633372,-300.0,9.549e-05,2]
[419801595,1775388633382,-300.0,9.549e-05,2]
[419801596,1775388633391,-300.0,9.549e-05,2]
[419801597,1775388633400,-150.0,9.549e-05,2]
[419801598,1775388633410,-287.0,9.55e-05,2]
[419801599,1775388633419,-163777.14830102,9.55e-05,2]
[419801600,1775388633429,-2781.5039426,9.55e-05,2]
[419801601,1775388633438,-1500000.0,9.556e-05,2]
[419801602,1775388633447,-293080.10683997,9.556e-05,2]
[419801603,1775388634116,-692.54257105,9.556e-05,2]
[419801604,1775388634141,-1306.980303,9.556e-05,2]
[419801605,1775388634152,-1182.23052789,9.556e-05,2]
[419801606,1775388634167,-3579.0381034,9.556e-05,2]
[419801607,1775388638063,-2438.15312271,9.556e-05,2]
[419801608,1775388638074,-1132.68254729,9.556e-05,2]
[419801609,1775388638120,-1330.53130087,9.556e-05,2]
[419801610,1775388638179,-1965.40700253,9.556e-05,2]
[419801611,1775388638191,-240074.18823168,9.556e-05,2]
[419801612,1775388638340,-1953218.13944961,9.556e-05,2]
[419801613,1775388638351,-261.22263327,9.646e-05,2]
[419801614,1775388638361,-250.0,9.651e-05,2]
[419801615,1775388638372,-1000.0,9.655e-05,2]
[419801616,1775388638382,-58788.18,9.656e-05,2]
[419801617,1775388638392,-250.0,9.686e-05,2]
[419801618,1775388638402,-150.0,9.8e-05,2]
[419801619,1775388638413,-334.78,9.816e-05,2]
[419801620,1775388638423,-609.43122796,0.0001,2]
[419801621,1775388638433,-455.23710645,0.0001,2]
[419801622,1775388638443,-455.23710645,0.0001,2]
[419801623,1775388638453,-500.0,0.00010107,2]
[419801624,1775388638463,-77334.49741181,0.000102,2]
[419801625,1775388638473,-421.0,0.00010264,2]
[419801626,1775388638483,-227.2931487,0.00010285,2]
[419801627,1775388638493,-435.9994632,0.00010289,2]
[419801628,1775388638504,-2500.0,0.00010358,2]
[419801630,1775388638513,-21592.6078,0.00010359,2]
[419801632,1775388638522,-334.78,0.00010361,2]
[419801634,1775388638532,-792.0,0.00010363,2]
[419801636,1775388638541,-211.0,0.00010363,2]
[419801638,1775388638551,-324.0,0.00010383,2]
[419801640,1775388638560,-150.99,0.0001045,2]
[419801643,1775388638571,-150.99,0.00010456,2]
[419801645,1775388638580,-299.99,0.00010456,2]
[419801647,1775388638591,-3579.04,0.00010456,2]
[419801648,1775388638601,-9999.99,0.00010456,2]
[419801649,1775388638611,-150.0,0.00010458,2]
[419801651,1775388638620,-5709.843,0.00010458,2]
[419801653,1775388638630,-291.19,0.00010458,2]
[419801656,1775388638639,-999.99,0.00010458,2]
[419801658,1775388638648,-34680.75,0.00010458,2]
[419801660,1775388638658,-9999.99,0.00010458,2]
[419801662,1775388638667,-4999.99,0.00010458,2]
[419801664,1775388638677,-500.0,0.00010458,2]
[419801666,1775388638686,-156.73,0.00010459,2]
[419801668,1775388638697,-150.0,0.00010459,2]